bitfinex-derivatives/quotes_ETHF0:USTF0_20260204
["timestamp","ask_amount","ask_price","bid_price","bid_amount"]
[1770214089522,13.92593327,2208.1,2207.3,1.14746414]
[1770214090725,20.99671732,2208.1,2207.3,0.00505443]
[1770214091029,7.07078405,2208.0,2207.3,0.00505443]
[1770214091323,13.92593327,2208.1,2207.4,1.27456789]
[1770214091727,7.07078405,2208.0,2207.3,0.00505443]
[1770214092228,20.99671732,2207.9,2207.3,0.00505443]
[1770214092424,20.99671732,2207.8,2207.0,4.89584431]
[1770214092625,0.22675,2208.5,2207.1,4.89584431]
[1770214092626,7.07078405,2208.1,2207.1,4.89584431]
[1770214092925,16.13890475,2208.1,2207.0,1.27456789]
[1770214093125,7.07078405,2208.1,2207.0,1.27456789]
[1770214093324,0.22675,2208.5,2207.0,1.27456789]
[1770214093325,7.07078405,2207.9,2207.0,1.27456789]
[1770214093526,7.07078405,2207.9,2207.0,4.90157271]
[1770214093824,7.07078405,2207.5,2206.6,4.04400729]
[1770214094026,7.07078405,2207.5,2206.4,5.31484382]
[1770214094229,0.045,2207.8,2206.4,5.31484382]
[1770214094230,7.07078405,2207.3,2206.5,4.89780589]
[1770214094425,7.07078405,2207.6,2206.5,6.16864242]
[1770214094626,7.07078405,2207.3,2206.5,4.89780589]
[1770214094928,14.15276327,2207.7,2206.0,3.62360274]
[1770214094929,7.07078405,2207.1,2206.0,4.95010729]
[1770214095124,7.07078405,2207.1,2206.3,0.00514867]
[1770214095326,7.07078405,2206.9,2206.3,0.00514867]
[1770214095629,7.07078405,2206.7,2206.0,0.9061]
[1770214095828,7.07078405,2206.6,2206.0,0.9061]
[1770214096024,13.92593327,2206.5,2206.0,0.9061]
[1770214096224,20.99671732,2206.5,2206.0,0.9061]
[1770214096420,7.07078405,2206.8,2206.0,0.9061]
[1770214096620,7.07078405,2206.8,2206.0,2.46080654]
[1770214096822,7.07078405,2206.6,2206.1,0.14185435]
[1770214097030,7.07078405,2206.6,2206.0,0.91084423]
[1770214097225,20.99671732,2206.5,2206.1,0.14186127]
[1770214097432,7.07078405,2206.8,2206.2,0.14186085]
[1770214097628,7.07537044,2206.8,2206.1,1.52342212]
[1770214097824,0.00458639,2206.8,2206.2,0.14185516]
[1770214098029,7.07078405,2207.1,2206.3,0.14185516]
[1770214098225,7.07078405,2207.1,2206.4,0.14185516]
[1770214098530,16.13890475,2207.0,2206.5,0.14185516]
[1770214098726,7.07078405,2207.0,2206.2,4.90350866]
[1770214098921,0.00402442,2207.0,2206.3,0.14183502]
[1770214099128,0.00402442,2207.0,2206.4,0.14183502]
[1770214099326,7.07480847,2207.0,2206.5,0.14183502]
[1770214099526,7.07480847,2207.0,2206.6,0.14183502]
[1770214099730,7.07480847,2207.0,2206.3,4.90350866]
[1770214099931,7.07480847,2207.0,2206.4,0.14183026]
[1770214100233,7.07078405,2207.3,2206.5,0.14183026]
[1770214100529,7.07078405,2207.3,2206.6,0.14183026]
[1770214100720,7.07078405,2207.3,2206.3,6.41967582]
[1770214100721,7.07078405,2207.3,2206.7,0.14183026]
[1770214100927,7.07078405,2207.3,2206.3,6.41967582]
[1770214101123,7.07078405,2207.3,2206.4,0.14182345]
[1770214101327,7.07078405,2207.3,2206.5,0.14182345]
[1770214101328,7.07565281,2207.3,2206.5,0.14182345]
[1770214101631,16.14377351,2207.3,2206.6,0.14182345]
[1770214101832,16.14377351,2207.3,2206.7,0.14182345]
[1770214102026,7.07565281,2207.3,2206.8,0.14182345]
[1770214102232,16.14377351,2207.3,2206.9,0.14181795]
[1770214102427,16.13890475,2207.2,2206.5,4.04400729]
[1770214102627,16.13890475,2206.9,2206.6,5.14089468]
[1770214102932,16.13890475,2206.8,2206.1,4.04400729]
[1770214103130,7.07078405,2206.8,2206.2,4.99950964]
[1770214103328,7.07078405,2206.8,2206.3,5.00157099]
[1770214103633,16.13890475,2206.5,2206.0,0.91084423]
[1770214103832,7.07078405,2206.5,2206.1,5.00176883]
[1770214104033,7.3780655,2206.3,2206.0,0.91084423]
[1770214104434,16.4461862,2206.3,2206.0,0.91084423]
[1770214104934,9.0681207,2206.2,2206.0,0.91084423]
[1770214105635,7.67024676,2207.1,2206.1,6.7429474]
[1770214105832,7.67024676,2207.1,2206.2,9.03131616]
[1770214106136,7.67024676,2207.1,2206.3,9.03131616]
[1770214106330,14.2563547,2207.1,2206.4,4.98501723]
[1770214106632,6.58610794,2207.1,2206.5,4.98501723]
[1770214106828,6.58610794,2207.0,2206.3,4.04629893]
[1770214107028,7.3780655,2206.4,2206.2,2.97229893]
[1770214107235,7.3780655,2206.4,2206.0,0.91084423]
[1770214107436,6.58610794,2206.2,2206.0,0.91084423]
[1770214107731,7.3780655,2206.1,2206.0,0.00474423]
[1770214107932,7.3780655,2206.4,2205.5,5.88018693]
[1770214108128,7.3780655,2206.7,2205.5,5.88018693]
[1770214108526,13.96417344,2206.4,2205.4,5.62029023]
[1770214108726,7.3780655,2206.3,2205.4,5.62029023]
[1770214108931,7.3780655,2206.3,2205.4,5.62352453]
[1770214109135,7.3780655,2206.1,2205.4,0.0032343]
[1770214109534,7.3780655,2206.0,2205.4,0.0032343]
[1770214110237,13.96417344,2206.0,2205.4,0.0032343]
[1770214110837,7.3780655,2206.0,2205.4,0.0032343]
[1770214111038,7.3780655,2205.8,2205.4,0.0032343]
[1770214111338,7.3780655,2205.8,2204.8,5.39323023]
[1770214111537,7.3780655,2205.8,2204.8,10.98622084]
[1770214112238,7.3780655,2205.8,2204.8,10.99098974]
[1770214112436,13.96417344,2205.8,2204.8,10.99098974]
[1770214112635,7.3780655,2206.1,2204.9,5.53562884]
[1770214113037,7.3780655,2205.9,2204.9,5.53562884]
[1770214113534,13.96417344,2205.9,2204.9,5.53562884]
[1770214114433,13.96417344,2205.9,2204.9,5.76273884]
[1770214114638,7.3780655,2205.9,2205.1,5.53740909]
[1770214114934,7.3780655,2206.3,2205.1,5.53740909]
[1770214115131,7.3780655,2206.2,2205.1,5.53740909]
[1770214115338,6.58610794,2206.1,2205.1,5.53740909]
[1770214115532,6.58610794,2206.0,2205.1,5.76449909]
[1770214115739,6.58610794,2206.0,2205.2,5.67929963]
[1770214115942,6.58610794,2206.0,2205.2,5.53740909]
[1770214116239,7.3780655,2206.2,2205.2,5.53740909]
[1770214116540,13.96417344,2206.2,2205.2,5.53740909]
[1770214116941,7.3780655,2206.2,2205.2,5.53740909]
[1770214117142,7.3780655,2206.6,2205.2,5.53740909]
[1770214117342,7.3780655,2206.5,2205.4,5.50623121]
[1770214117542,7.3780655,2206.4,2205.4,5.50623121]
[1770214117743,7.3780655,2206.4,2205.5,5.73328121]
[1770214118242,6.58610794,2206.3,2205.5,5.73328121]
[1770214118743,6.58610794,2206.2,2205.5,5.73328121]
[1770214118932,6.58610794,2206.3,2205.5,5.73328121]
[1770214119140,6.58610794,2206.3,2205.6,4.88535935]
[1770214119340,7.3780655,2206.4,2205.7,4.84896848]
[1770214119741,7.3780655,2206.4,2205.3,5.39323023]
[1770214119942,7.3780655,2206.2,2204.9,5.39323023]
[1770214120136,7.3780655,2206.2,2205.0,0.14190565]
[1770214120341,7.6050455,2206.2,2205.1,0.14190786]
[1770214120544,7.3780655,2205.8,2204.8,0.0047689]
[1770214120745,7.4230655,2205.8,2204.8,0.0047689]
[1770214121650,7.3780655,2205.8,2204.8,0.0047689]
[1770214121842,7.4230655,2205.8,2204.8,0.0047689]
[1770214122040,7.6500955,2205.8,2204.3,5.8468787]
[1770214122648,7.3780655,2205.6,2204.3,0.45364847]
[1770214122850,7.3780655,2205.4,2204.3,0.45364847]
[1770214123144,7.3780655,2205.4,2203.8,5.39323023]
[1770214123346,7.3780655,2205.2,2203.7,5.39323023]
[1770214123650,7.6051455,2205.2,2203.5,5.39323023]
[1770214123841,7.3780655,2205.0,2203.8,5.28116911]
[1770214124246,7.3780655,2205.0,2203.9,10.90160934]
[1770214124448,7.3780655,2205.0,2204.0,5.28116911]
[1770214124752,7.3780655,2205.0,2204.1,5.25540098]
[1770214125647,7.3780655,2205.0,2203.9,5.62044023]
[1770214125941,7.3780655,2205.0,2203.9,5.39323023]
[1770214126146,7.3780655,2205.0,2203.8,0.00395815]
[1770214127144,7.3780655,2205.0,2203.8,5.31597188]
[1770214127349,7.3780655,2205.0,2203.9,5.31201373]
[1770214127545,7.3780655,2205.0,2203.9,5.53923373]
[1770214128649,7.3780655,2205.0,2204.0,5.52933902]
[1770214129253,7.3780655,2205.3,2204.1,5.52931902]
[1770214129959,7.3780655,2205.2,2204.1,5.52931902]
[1770214130159,7.3780655,2205.2,2203.9,5.39323023]
[1770214130354,7.3780655,2205.2,2203.8,5.39718838]
[1770214130757,7.3780655,2205.0,2203.8,0.00395815]
[1770214132961,7.3780655,2204.2,2202.5,5.39323023]
[1770214133153,7.3780655,2204.0,2202.4,12.74932377]
[1770214133556,7.3780655,2204.0,2202.5,7.12872354]
[1770214133756,7.38368815,2204.0,2202.5,7.13274569]
[1770214134756,7.38368815,2204.0,2202.5,9.82694759]
[1770214135462,7.38368815,2204.0,2202.6,2.6942019]
[1770214135662,7.38368815,2204.0,2202.6,9.88717285]
[1770214136659,7.61089815,2204.0,2202.5,0.00402215]
[1770214136863,7.61089815,2204.0,2202.5,7.1969931]
[1770214137063,7.26435094,2203.8,2202.7,9.88717285]
[1770214137562,0.00562265,2204.0,2202.7,9.88717285]
[1770214137563,0.00562265,2204.0,2203.0,9.9829596]
[1770214137764,0.00562265,2204.0,2203.1,7.0614477]
[1770214138169,0.00562265,2204.0,2203.1,9.7556496]
[1770214138360,0.00562265,2204.0,2203.2,7.0614477]
[1770214138564,0.00562265,2204.0,2203.3,7.0614477]
[1770214139164,7.1629125,2204.0,2202.8,2.6942019]
[1770214139360,7.1629125,2204.0,2202.6,2.9215519]
[1770214139661,7.1629125,2204.0,2202.7,2.6942019]
[1770214139865,7.1629125,2204.0,2202.8,2.6942019]
[1770214140562,7.1629125,2204.0,2203.0,7.0614477]
[1770214140768,7.1629125,2204.0,2203.1,9.7556496]
[1770214140968,7.1629125,2204.0,2202.8,2.6942019]
[1770214141268,7.1629125,2204.0,2202.6,2.6942019]
[1770214141468,7.15728985,2203.8,2202.8,7.0614477]
[1770214141770,7.1629125,2204.0,2203.0,9.7556496]
[1770214142471,7.1629125,2204.0,2203.0,9.9829596]
[1770214144068,7.1629125,2204.0,2203.0,7.2887577]
[1770214144365,7.15728985,2204.3,2203.2,7.2887377]
[1770214144968,7.15728985,2204.3,2202.9,7.0614477]
[1770214145671,7.16126314,2204.3,2202.9,7.0614477]
[1770214146071,7.16126314,2204.3,2202.9,9.75465509]
[1770214146271,7.16126314,2204.3,2203.0,4.49267961]
[1770214146671,7.16126314,2204.3,2203.0,7.185887]
[1770214147468,7.16126314,2204.3,2203.0,14.4746447]
[1770214147673,7.16126314,2204.3,2203.1,11.55412731]
[1770214147874,7.16126314,2204.3,2203.1,7.0614477]
[1770214148073,7.16126314,2204.3,2203.2,7.0614477]
[1770214149273,7.16126314,2204.3,2203.3,4.50558973]
[1770214150267,7.15728985,2204.6,2203.6,9.98190509]
[1770214150467,3.1013,2205.3,2203.9,9.98187509]
[1770214150672,0.045,2205.2,2204.0,14.2525726]
[1770214150878,0.045,2205.2,2204.0,9.75465509]
[1770214151078,3.1013,2205.3,2204.0,7.0614477]
[1770214151279,0.045,2205.1,2204.0,9.75465509]
[1770214151979,3.15014419,2205.3,2204.3,7.0614477]
[1770214152181,3.15014419,2205.3,2204.3,0.00402078]
[1770214152376,0.22711,2205.0,2203.8,2.69320739]
[1770214152580,7.38440985,2204.9,2203.6,2.69320739]
[1770214152980,7.38440985,2204.9,2203.5,2.69320739]
[1770214153376,7.38440985,2204.9,2203.5,0.00575909]
[1770214153678,7.15728985,2204.7,2203.5,0.00575909]
[1770214155078,7.38442985,2204.7,2203.5,0.00575909]
[1770214155276,1.04466,2205.1,2203.3,2.69320739]
[1770214155277,7.15728985,2204.5,2203.3,2.69320739]
[1770214155476,7.15728985,2204.3,2203.3,2.69320739]
[1770214155680,7.15728985,2204.3,2203.3,7.19930794]
[1770214155881,7.15728985,2204.3,2203.3,2.69320739]
[1770214156283,7.15728985,2204.3,2203.4,4.50597454]
[1770214156483,7.15728985,2204.3,2203.4,14.26062963]
[1770214156779,7.15728985,2204.3,2203.5,11.56742224]
[1770214156981,7.15728985,2204.3,2203.4,2.69320739]
[1770214157373,7.15728985,2204.3,2203.4,7.19973434]
[1770214158084,7.15728985,2204.3,2203.3,2.69884621]
[1770214158584,7.15728985,2204.3,2203.4,4.50914816]
[1770214158782,0.045,2204.5,2201.4,9.94194195]
[1770214158980,0.22743,2201.9,2200.4,7.67151149]
[1770214159279,2.64493224,2200.8,2200.4,21.62053123]
[1770214159481,2.64493224,2200.8,2200.4,18.20668941]
[1770214159682,39.51754539,2200.7,2199.7,7.67151149]
[1770214159980,2.63454281,2200.3,2199.7,7.67151149]
[1770214160176,2.63454281,2200.1,2199.7,7.67151149]
[1770214160380,5.07031299,2200.0,2199.8,25.8782009]
[1770214160580,29.82041448,2200.5,2199.8,7.67151149]
[1770214160781,29.82041448,2200.5,2199.9,25.8782009]
[1770214160981,5.27344824,2200.8,2200.0,7.67151149]
[1770214161280,0.00444219,2200.8,2200.0,7.67151149]
[1770214162378,0.00444219,2200.8,2200.1,25.8782009]
[1770214162683,0.00444219,2200.8,2200.1,7.67151149]
[1770214163284,0.00444219,2200.8,2200.2,18.20668941]
[1770214163485,0.00444219,2200.8,2199.9,25.8782009]
[1770214163787,0.00444219,2200.8,2199.9,18.20668941]
[1770214164086,0.01446303,2200.8,2199.8,0.00331948]
[1770214164288,0.01446303,2200.8,2199.9,18.20668941]
[1770214164990,0.01446303,2200.8,2198.0,1.04798]
[1770214164991,41.02755,2200.7,2199.4,7.61519261]
[1770214165486,0.22756,2200.6,2199.4,7.61519261]
[1770214165685,0.22757,2200.5,2199.5,18.07779374]
[1770214165878,1.04678,2200.6,2199.1,7.67964045]
[1770214166086,1.04693,2200.3,2199.5,0.00384865]
[1770214166280,1.04739,2199.4,2198.5,18.07779374]
[1770214166484,0.22771,2199.2,2198.3,18.53268036]
[1770214166682,0.045,2199.2,2198.3,18.53268036]
[1770214166887,40.8,2199.1,2198.3,18.53268036]
[1770214167384,0.045,2199.0,2198.3,18.53740985]
[1770214167591,0.045,2199.0,2197.8,7.65840028]
[1770214167889,0.045,2199.0,2197.9,18.07779374]
[1770214168187,0.22774,2198.9,2197.9,18.07779374]
[1770214168388,1.04762,2198.9,2197.4,7.67964045]
[1770214168591,0.22775,2198.8,2197.4,18.07779374]
[1770214168886,0.22777,2198.6,2197.4,18.07779374]
[1770214169087,0.045,2198.5,2197.4,18.07779374]
[1770214169384,0.22777,2198.6,2197.4,18.07779374]
[1770214169591,0.22778,2198.5,2197.4,18.08117717]
[1770214170289,0.2278,2198.3,2197.4,18.08117717]
[1770214170485,1.04788,2198.3,2197.4,0.00338343]
[1770214170788,0.22786,2197.7,2196.5,7.52177282]
[1770214171092,0.045,2197.6,2196.5,7.52177282]
[1770214171291,1.27673,2196.5,2194.6,0.22817]
[1770214171490,0.22808,2195.6,2194.3,11.11047268]
[1770214171689,0.22804,2196.0,2194.6,0.00475417]
[1770214171886,40.8,2195.9,2194.7,11.11047268]
[1770214172089,0.045,2195.8,2194.7,11.11047268]
[1770214172290,40.8,2195.9,2193.9,1.04994]
[1770214172491,0.28134022,2195.7,2193.9,0.22825]
[1770214173286,0.28134022,2195.7,2194.0,7.53897034]
[1770214173492,0.28134022,2195.6,2194.0,7.53897034]
[1770214173693,0.28134022,2195.1,2194.0,7.54367034]
[1770214174093,1.04928,2195.4,2194.0,0.0047]
[1770214174395,1.04915,2195.7,2194.0,7.68434045]
[1770214174595,0.22811,2195.3,2194.0,7.68434045]
[1770214174786,0.318,2195.9,2194.0,7.68434045]
[1770214174988,0.22813,2195.1,2194.0,0.0047]
[1770214175197,0.22813,2195.1,2192.2,1.09579]
[1770214175198,1.04997,2194.0,2192.4,7.67964045]
[1770214175398,0.22827,2193.8,2192.4,7.68434045]
[1770214175696,40.8,2193.7,2192.6,7.67964045]
[1770214176089,41.85455694,2193.7,2192.6,0.00418021]
[1770214176293,41.85455694,2193.7,2192.3,0.0047]
[1770214176294,40.80445694,2193.7,2192.3,0.0047]
[1770214176491,40.80445694,2193.7,2192.4,0.4638096]
[1770214176689,0.00445694,2193.7,2192.5,7.48190273]
[1770214176892,0.00445694,2193.7,2192.8,7.48190273]
[1770214177093,0.39547543,2193.5,2192.1,7.48190273]
[1770214177391,0.62377543,2193.5,2192.1,7.48689934]
[1770214177595,0.39547543,2193.5,2192.4,7.48190273]
[1770214177799,40.8,2193.6,2192.4,8.53259273]
[1770214178000,0.495,2194.4,2193.1,7.48190273]
[1770214178295,0.39547543,2193.9,2192.6,7.48190273]
[1770214178500,41.19547543,2193.8,2192.6,7.48190273]
[1770214178798,41.19547543,2193.8,2192.1,0.00499661]
[1770214178799,40.8,2193.8,2192.7,7.84482281]
[1770214178993,40.8,2193.8,2192.7,7.84012281]
[1770214179194,0.45,2194.4,2193.5,0.4638096]
[1770214179391,0.45,2194.4,2193.5,7.84012281]
[1770214179592,0.045,2195.0,2194.1,0.4638096]
[1770214179799,0.22819,2194.6,2193.5,7.37631321]
[1770214180200,41.0316796,2194.6,2193.6,0.0047]
[1770214180501,0.22819,2194.5,2193.6,0.0047]
[1770214180692,1.54104758,2194.5,2193.7,0.0047]
[1770214180898,1.31285758,2195.2,2194.0,7.15312062]
[1770214181195,1.35785758,2195.5,2194.0,7.15312062]
[1770214181397,1.35785758,2196.2,2194.8,7.15312062]
[1770214181797,1.31285758,2196.1,2194.9,0.0047]
[1770214181998,0.22805,2195.9,2194.9,0.0047]
[1770214182300,1.54090758,2195.9,2194.9,0.0047]
[1770214182795,1.54090758,2195.9,2195.0,0.0047]
[1770214183100,0.22805,2195.9,2194.8,7.15312062]
[1770214183300,0.22805,2195.9,2194.9,0.0047]
[1770214183500,0.22805,2195.9,2195.0,0.4638096]
[1770214183700,1.6065737,2196.1,2194.4,7.15312062]
[1770214183701,1.8295408,2195.8,2194.4,7.15312062]
[1770214184100,1.8295608,2195.6,2194.4,7.15312062]
[1770214184601,1.92601973,2195.5,2194.4,7.15312062]
[1770214184801,1.92602973,2195.4,2194.4,7.15312062]
[1770214185100,0.2282,2194.4,2193.1,7.15312062]
[1770214185301,0.045,2194.3,2193.1,7.15312062]
[1770214185496,1.74292973,2194.3,2193.1,7.15312062]
[1770214185696,3.6803,2194.2,2193.1,7.61693022]
[1770214185897,1.69792973,2194.1,2192.7,7.15312062]
[1770214186103,1.69792973,2194.1,2192.7,7.15807659]
[1770214186104,1.93164448,2194.1,2192.7,7.15807659]
[1770214186609,1.82154796,2193.9,2192.7,7.15807659]
[1770214187001,1.82154796,2193.9,2192.8,0.4638096]
[1770214187207,0.00548475,2194.1,2193.1,0.4638096]
[1770214187405,0.00548475,2194.1,2192.7,0.00495597]
[1770214187406,0.00548475,2194.1,2193.0,7.15312062]
[1770214187602,0.00548475,2194.1,2193.0,7.61693022]
[1770214187807,0.00548475,2194.1,2193.2,7.61693022]
[1770214188209,0.00548475,2194.1,2193.4,0.4638096]
[1770214188405,1.77488591,2194.2,2193.4,7.15312062]
[1770214188611,0.9823694,2194.2,2194.0,0.4638096]
[1770214188806,1.56359957,2194.8,2193.7,0.4638096]
[1770214189012,1.79179957,2194.4,2193.1,7.15312062]
[1770214189409,1.79179957,2194.4,2193.1,7.61693022]
[1770214189410,0.22821,2194.3,2193.1,7.61693022]
[1770214189611,0.22824,2194.0,2193.1,7.15312062]
[1770214189913,0.22827,2193.8,2192.7,7.15807659]
[1770214190210,0.22831,2193.4,2192.3,7.60925217]
[1770214190406,40.8,2193.3,2192.3,7.60925217]
[1770214190606,1.79190957,2193.4,2192.4,0.4638096]
[1770214191007,42.59190957,2193.4,2192.4,0.4638096]
[1770214191312,0.22833,2193.2,2192.4,0.0032209]
[1770214191512,0.22833,2193.2,2192.5,0.4638096]
[1770214191708,0.22833,2193.2,2192.4,0.0032209]
[1770214191913,3.1211,2193.7,2192.9,7.61693022]
[1770214192106,3.1211,2193.7,2192.9,7.15312062]
[1770214192307,1.61022985,2193.6,2192.4,0.0032209]
[1770214192508,44.14938,2193.7,2192.4,7.15634152]
[1770214192707,3.1211,2193.7,2192.8,7.15312062]
[1770214194512,0.23143788,2194.4,2192.8,7.15312062]
[1770214194711,0.00323788,2194.4,2193.1,7.67501627]
[1770214194907,0.23144788,2194.4,2193.1,7.67501627]
[1770214195312,0.00323788,2194.4,2193.1,7.67501627]
[1770214195510,4.7327209,2194.3,2192.7,7.67501627]
[1770214195714,0.00323788,2194.4,2193.0,7.67501627]
[1770214196112,0.23143788,2194.4,2193.0,7.67501627]
[1770214196316,0.00323788,2194.4,2193.0,7.90335627]
[1770214196913,0.00323788,2194.4,2193.2,7.90333627]
[1770214197819,0.22813,2195.1,2193.5,7.67501627]
[1770214198017,0.22813,2195.1,2193.3,0.61204022]
[1770214198018,5.01940309,2195.0,2193.7,7.51920553]
[1770214198314,38.19348218,2195.4,2193.9,7.51920553]
[1770214198618,43.23241425,2195.4,2193.9,7.51920553]
[1770214198914,5.03330839,2195.3,2193.9,7.74745553]
[1770214199218,0.00562368,2195.4,2194.1,7.51920553]
[1770214199412,0.00562368,2195.4,2194.3,7.51920553]
[1770214199619,38.19348218,2195.8,2194.3,7.51920553]
[1770214200213,38.19348218,2195.6,2194.3,7.74741553]
[1770214200413,38.19348218,2195.8,2194.7,7.51920553]
[1770214200610,38.19348218,2196.0,2194.8,0.22816]
[1770214200816,5.26900605,2196.5,2194.9,7.74735553]
[1770214201020,5.26900605,2196.8,2195.3,7.51920553]
[1770214201208,5.26900605,2197.2,2195.9,7.51920553]
[1770214201413,12.98285013,2197.7,2196.1,7.51920553]
[1770214201617,5.26900605,2197.9,2196.3,7.51920553]
[1770214201817,12.75499013,2198.1,2196.3,7.51920553]
[1770214202116,7.48598408,2198.0,2196.5,7.51920553]
[1770214202508,7.48598408,2197.5,2196.5,0.00571965]
[1770214202710,0.22796,2196.7,2195.5,7.51920553]
[1770214203310,7.48598408,2196.9,2195.5,7.51920553]
[1770214203812,7.48598408,2196.9,2195.5,7.52456468]
[1770214204213,7.48598408,2197.2,2195.5,7.52456468]
[1770214204913,0.045,2197.4,2195.5,7.52456468]
[1770214204914,7.53098408,2197.4,2195.7,7.51920553]
[1770214205618,7.48598408,2197.7,2195.9,7.74724553]
[1770214205910,7.48598408,2197.3,2195.9,7.51920553]
[1770214206111,7.48598408,2197.9,2195.9,7.51920553]
[1770214206311,7.48598408,2196.8,2195.5,7.52456468]
[1770214206517,7.71396408,2196.6,2195.5,0.00535915]
[1770214209125,7.48598408,2196.3,2195.0,0.8548]
[1770214209515,7.48598408,2195.5,2194.5,0.045]
[1770214209720,0.045,2195.7,2194.1,8.56909553]
[1770214210023,7.48598408,2196.3,2194.9,7.51920553]
[1770214210217,7.49087236,2196.3,2194.9,7.52307166]
[1770214210620,0.00488828,2196.3,2194.9,7.52307166]
[1770214210826,0.00488828,2196.3,2195.1,7.51920553]
[1770214211423,7.49087236,2196.3,2195.1,7.51920553]
[1770214211926,7.49087236,2196.3,2195.0,0.0553]
[1770214212225,7.49087236,2196.3,2195.0,7.57450553]
[1770214212420,0.00488828,2196.3,2195.0,7.57450553]
[1770214212622,0.00488828,2196.3,2195.4,7.51920553]
[1770214212827,11.20504072,2197.5,2195.6,7.51920553]
[1770214212828,7.48598408,2196.9,2195.6,7.51920553]
[1770214213323,4.56966325,2196.8,2195.2,7.51920553]
[1770214213524,7.48598408,2196.7,2195.2,7.74732553]
[1770214213826,7.48598408,2196.7,2195.0,0.0553]
[1770214213827,7.49186092,2196.7,2195.4,7.51920553]
[1770214214127,0.00587684,2196.7,2195.6,7.51920553]
[1770214214426,0.00587684,2196.7,2195.6,7.74727553]
[1770214214827,7.48598408,2197.4,2196.0,7.51920553]
[1770214215624,7.48598408,2197.2,2195.7,7.56420553]
[1770214215825,7.49013193,2197.2,2195.7,7.56420553]
[1770214216827,0.00414785,2197.2,2196.3,7.51920553]
[1770214217420,7.48598408,2197.9,2196.3,7.74720553]
[1770214217827,4.5669029,2197.8,2196.3,7.74720553]
[1770214218131,7.48598408,2197.7,2196.3,7.74720553]
[1770214218326,7.49071756,2197.7,2196.3,7.74720553]
[1770214218630,7.49071756,2197.7,2196.3,7.51920553]
[1770214219425,7.48598408,2197.5,2195.8,7.51920553]
[1770214219620,7.48598408,2197.3,2195.8,7.51920553]
[1770214219821,0.22792,2197.1,2195.8,7.51920553]
[1770214220023,7.48598408,2196.6,2195.7,0.045]
[1770214220327,7.48598408,2196.6,2195.1,7.51920553]
[1770214220527,10.07996312,2196.9,2195.5,7.51920553]
[1770214220720,4.57235032,2196.8,2195.5,7.51920553]
[1770214220923,7.48598408,2196.8,2195.5,7.51920553]
[1770214221119,7.48598408,2196.5,2195.1,7.51920553]
[1770214221722,7.48598408,2196.3,2195.1,7.51920553]
[1770214223626,2.59397904,2196.5,2195.1,7.51920553]
[1770214223822,4.49445876,2196.5,2195.1,7.74732553]
[1770214224121,4.49445876,2196.4,2195.3,7.28390115]
[1770214224325,9.79759022,2196.6,2195.3,7.28390115]
[1770214224521,4.50153006,2196.5,2195.5,7.05580115]
[1770214224725,2.59397904,2197.0,2195.8,7.05580115]
[1770214225131,2.59397904,2197.4,2196.2,7.05580115]
[1770214225331,2.59397904,2197.5,2196.2,7.05580115]
[1770214225528,7.20361118,2197.3,2195.9,0.045]
[1770214225833,7.20361118,2197.3,2196.0,5.62719218]
[1770214226033,7.20361118,2197.3,2196.2,5.62719218]
[1770214226227,7.20361118,2197.3,2196.1,0.22802]
[1770214226836,7.20361118,2197.3,2196.1,5.82748335]
[1770214227127,7.20361118,2197.3,2196.2,0.04144279]
[1770214227328,7.20361118,2197.2,2195.9,0.045]
[1770214227534,7.20361118,2196.8,2195.9,0.045]
[1770214227731,7.20361118,2196.6,2195.9,0.045]
[1770214227930,7.20361118,2196.3,2195.0,5.65476335]
[1770214228326,9.79759022,2196.3,2195.3,5.59946335]
[1770214228733,9.79759022,2196.3,2195.2,0.22812]
[1770214228933,2.59397904,2196.4,2195.4,5.60968827]
[1770214229131,7.20361118,2196.3,2194.9,0.04886613]
[1770214229434,7.20361118,2196.0,2194.9,0.04886613]
[1770214229633,7.20898721,2196.0,2194.9,0.04886613]
[1770214230332,7.20898721,2196.0,2195.0,0.0549]
[1770214230632,7.20898721,2196.0,2195.0,5.76292425]
[1770214230929,7.20361118,2195.9,2195.0,0.0549]
[1770214231132,9.79759022,2195.3,2193.9,5.70802425]
[1770214231327,7.20361118,2195.0,2193.9,5.70802425]
[1770214231528,7.20361118,2194.9,2193.8,0.045]
[1770214231829,7.20361118,2194.9,2193.8,5.75302425]
[1770214232228,7.20361118,2194.9,2193.8,5.75783855]
[1770214233435,7.20361118,2195.2,2193.8,5.75783855]
[1770214233829,7.20361118,2194.9,2193.8,0.0498143]
[1770214234035,7.20361118,2194.8,2193.8,0.0498143]
[1770214234236,7.20361118,2194.3,2192.8,5.9676486]
[1770214234533,7.20361118,2194.2,2193.0,6.82881213]
[1770214234731,9.79759022,2194.5,2193.1,0.22833]
[1770214234934,7.20361118,2194.5,2193.2,6.68548401]
[1770214235129,7.20361118,2194.4,2193.2,6.68548401]
[1770214235331,7.20727848,2194.4,2193.2,0.00513604]
[1770214235538,7.20727848,2194.4,2193.2,6.69062005]
[1770214235927,39.34393549,2194.7,2193.2,6.69062005]
[1770214236130,6.48865939,2195.0,2193.4,4.71833133]
[1770214236131,7.69691708,2195.0,2193.4,4.71833133]
[1770214236329,7.69691708,2195.0,2193.9,0.22825]
[1770214237036,7.70244587,2195.0,2193.8,0.35296908]
[1770214237335,0.00552879,2195.0,2194.0,0.35296908]
[1770214237637,7.52319693,2195.7,2194.5,0.57562029]
[1770214237831,7.52319693,2195.7,2194.0,1.04993]
[1770214237832,7.52319693,2196.0,2194.9,0.22814]
[1770214238434,7.52319693,2196.0,2194.6,0.39244029]
[1770214238634,7.52647528,2196.0,2194.7,0.22817]
[1770214238934,7.52647528,2196.0,2194.8,0.5122852]
[1770214239530,7.52647528,2196.0,2194.7,0.33175373]
[1770214239531,0.00327835,2196.0,2195.0,0.2841252]
[1770214239827,7.55485448,2197.0,2195.6,0.2841252]
[1770214240026,7.55485448,2197.0,2195.9,0.22804]
[1770214240237,7.55485448,2197.8,2196.0,0.22803]
[1770214240432,7.55485448,2197.6,2196.0,0.60541208]
[1770214240733,7.56021316,2197.6,2196.0,0.5121552]
[1770214241125,7.56021316,2197.6,2195.9,0.01036424]
[1770214241329,7.54973656,2197.4,2195.7,0.33936104]
[1770214241732,7.54973656,2197.4,2195.8,0.3461657]
[1770214242125,7.54973656,2197.4,2195.7,0.27307]
[1770214242331,7.54973656,2197.2,2195.7,0.27307]
[1770214243330,7.54973656,2197.2,2195.8,0.43320454]
[1770214243727,7.54973656,2197.2,2195.9,0.56798766]
[1770214244226,0.00535868,2197.6,2196.1,0.33994766]
[1770214244227,7.53230193,2197.6,2196.1,0.33994766]
[1770214245335,7.53230193,2197.6,2196.0,0.22803]
[1770214245833,7.55313794,2197.4,2195.7,0.045]
[1770214247033,7.57482536,2197.2,2195.7,0.045]
[1770214247235,7.57482536,2197.0,2195.7,0.045]
[1770214247630,7.57482536,2196.5,2194.6,0.00417947]
[1770214247835,7.57482536,2196.2,2194.7,0.47235343]